fUST/lending_fUST_20250513
["ID","MTS","AMOUNT","RATE_DAILY","PERIOD"]
[360907314,1747135848536,-415.05185322,0.00013698,2]
[360907315,1747135848546,-531.93,0.00013698,2]
[360907316,1747135848555,-400.0,0.00013698,2]
[360907317,1747135848564,-400.0,0.00013698,2]
[360907318,1747135848574,-400.0,0.00013698,2]
[360907319,1747135848583,-151.0,0.00013698,2]
[360907320,1747135848593,-151.0,0.00013698,2]
[360907321,1747135848603,-1192.62,0.00013698,2]
[360907322,1747135848615,-400.0,0.00013698,2]
[360907323,1747135848625,-264.71855108,0.00013698,2]
[360907324,1747135848635,-650.48,0.00013698,2]
[360907325,1747135848644,-400.0,0.00013698,2]
[360907326,1747135848654,-400.0,0.00013698,2]
[360907327,1747135848664,-400.0,0.00013698,2]
[360907328,1747135848673,-400.0,0.00013698,2]
[360907329,1747135848683,-1003.09,0.00013698,2]
[360907330,1747135848694,-400.0,0.00013698,2]
[360907331,1747135848703,-400.0,0.00013698,2]
[360907332,1747135848712,-946.14,0.00013698,2]
[360907333,1747135848722,-983.78,0.00013698,2]
[360907334,1747135848731,-151.0,0.00013698,2]
[360907335,1747135848741,-151.0,0.00013698,2]
[360907336,1747135848751,-400.0,0.00013698,2]
[360907337,1747135848761,-400.0,0.00013698,2]
[360907338,1747135848771,-400.0,0.00013698,2]
[360907339,1747135848781,-433.03383778,0.00013698,2]
[360907340,1747135848791,-151.0,0.00013698,2]
[360907341,1747135848800,-289.297376,0.00013698,2]
[360907342,1747135848809,-236.43657015,0.00013698,2]
[360907343,1747135930436,-203.88889079,0.00013561,2]
[360907356,1747136831114,-577.03404953,0.00012205,2]
[360907357,1747136836094,-4422.96595047,0.00012205,2]
[360907358,1747136836115,-565.68,0.00012329,2]
[360907359,1747136836137,-300.0,0.00012395,2]
[360907360,1747136836167,-3376.21697051,0.00012396,2]
[360907361,1747136842081,-187.13860785,0.00012396,2]
[360907362,1747136845086,-1893.27028094,0.00012396,2]
[360907363,1747136845109,-289.64039163,0.0001267,2]
[360907364,1747136853105,-5000.0,0.00012543,2]
[360907365,1747136853126,-208.42203777,0.0001267,2]
[360907366,1747136853149,-181.5580592,0.00012691,2]
[360907367,1747136853170,-1628.45705832,0.00013325,2]
[360907372,1747136958507,-300.0,0.00012435,2]
[360907373,1747136958529,-500.0,0.00012436,2]
[360907374,1747136958552,-500.0,0.00012436,2]
[360907375,1747136958574,-500.0,0.00012436,2]
[360907376,1747136958600,-571.51104498,0.00012436,2]
[360907377,1747136958622,-537.55002897,0.00012436,2]
[360907378,1747136958643,-501.08224958,0.00012436,2]
[360907379,1747136958665,-500.0,0.00012436,2]
[360907381,1747136958689,-500.0,0.00012436,2]
[360907382,1747136958711,-500.0,0.00012436,2]
[360907383,1747136958733,-500.0,0.00012436,2]
[360907385,1747136958754,-500.0,0.00012436,2]
[360907386,1747136958777,-500.0,0.00012436,2]
[360907387,1747136958798,-500.0,0.00012436,2]
[360907388,1747136958820,-500.0,0.00012436,2]
[360907389,1747136958843,-500.0,0.00012436,2]
[360907390,1747136958864,-500.0,0.00012436,2]
[360907391,1747136958886,-500.0,0.00012436,2]
[360907392,1747136958908,-500.0,0.00012436,2]
[360907393,1747136958929,-500.0,0.00012436,2]
[360907394,1747136958952,-500.0,0.00012436,2]
[360907395,1747136958974,-500.0,0.00012436,2]
[360907396,1747136958996,-484.17232368,0.00012436,2]
[360907397,1747136959019,-500.0,0.00012436,2]
[360907398,1747136959040,-500.0,0.00012436,2]
[360907399,1747136959063,-601.57485467,0.00012436,2]
[360907400,1747136959085,-500.0,0.00012436,2]
[360907401,1747136959111,-500.0,0.00012436,2]
[360907402,1747136959133,-500.0,0.00012436,2]
[360907403,1747136959155,-500.0,0.00012436,2]
[360907404,1747136959177,-648.31680573,0.00012436,2]
[360907405,1747136959201,-500.0,0.00012436,2]
[360907406,1747136959224,-500.0,0.00012436,2]
[360907407,1747136959246,-500.0,0.00012436,2]
[360907408,1747136959269,-500.0,0.00012436,2]
[360907409,1747136959290,-500.0,0.00012436,2]
[360907410,1747136959312,-500.0,0.00012436,2]
[360907411,1747136959333,-500.0,0.00012436,2]
[360907412,1747136959356,-500.0,0.00012436,2]
[360907413,1747136959379,-500.0,0.00012436,2]
[360907414,1747136959400,-500.0,0.00012436,2]
[360907415,1747136959423,-500.0,0.00012436,2]
[360907416,1747136959446,-500.0,0.00012436,2]
[360907417,1747136959481,-500.0,0.00012436,2]
[360907418,1747136959506,-500.0,0.00012436,2]
[360907419,1747136959528,-347.00506741,0.00012436,2]
[360907420,1747136959552,-500.0,0.00012436,2]
[360907421,1747136959576,-500.0,0.00012436,2]
[360907422,1747136959599,-500.0,0.00012436,2]
[360907423,1747136959623,-500.0,0.00012436,2]
[360907424,1747136959647,-500.0,0.00012436,2]
[360907425,1747136959668,-500.0,0.00012436,2]
[360907426,1747136959693,-500.0,0.00012436,2]
[360907427,1747136959715,-500.0,0.00012436,2]
[360907428,1747136959736,-500.0,0.00012436,2]
[360907429,1747136959759,-500.0,0.00012436,2]
[360907430,1747136959781,-500.0,0.00012436,2]
[360907431,1747136959802,-500.0,0.00012436,2]
[360907432,1747136959824,-500.0,0.00012436,2]
[360907433,1747136959848,-500.0,0.00012436,2]
[360907434,1747136959870,-500.0,0.00012436,2]
[360907435,1747136959894,-500.0,0.00012436,2]
[360907436,1747136959916,-500.0,0.00012436,2]
[360907437,1747136959940,-500.0,0.00012436,2]
[360907438,1747136959963,-500.0,0.00012436,2]
[360907439,1747136959986,-500.0,0.00012436,2]
[360907440,1747136960009,-129.84767483,0.00012436,2]
[360907483,1747137032611,-300.0,0.00012435,2]
[360907485,1747137032621,-300.0,0.00012435,2]
[360907487,1747137032631,-300.0,0.00012435,2]
[360907489,1747137032640,-1200.0,0.00012435,2]
[360907491,1747137032650,-300.0,0.00012435,2]
[360907493,1747137032662,-370.15232517,0.00012436,2]
[360907496,1747137032673,-500.0,0.00012436,2]
[360907498,1747137032682,-500.0,0.00012436,2]
[360907501,1747137032692,-500.0,0.00012436,2]
[360907504,1747137032701,-500.0,0.00012436,2]
[360907507,1747137032710,-500.0,0.00012436,2]
[360907510,1747137032719,-500.0,0.00012436,2]
[360907513,1747137032729,-500.0,0.00012436,2]
[360907515,1747137032738,-500.0,0.00012436,2]
[360907518,1747137032747,-500.0,0.00012436,2]
[360907521,1747137032758,-500.0,0.00012436,2]
[360907524,1747137032766,-500.0,0.00012436,2]
[360907527,1747137032776,-468.89855627,0.000129,2]
[360907530,1747137032785,-468.8985562,0.00013143,2]
[360907533,1747137032794,-5000.0,0.00013192,2]
[360907536,1747137032804,-382.54486419,0.00013325,2]
[360907539,1747137032813,-789.57913511,0.00013498,2]
[360907542,1747137032822,-81764.72926399,0.0001355,2]
[360908060,1747137038496,-789.57913511,0.00013548,2]
[360908061,1747137038506,-9583.93918479,0.0001355,2]
[360908062,1747137038967,-3598.30003762,0.0001355,2]
[360908063,1747137038978,-4716.92500013,0.0001355,2]
[360908064,1747137038995,-4140.47564121,0.0001355,2]
[360908065,1747137039006,-9367.66796894,0.0001355,2]
[360908124,1747137043724,-1038.27861532,0.00013452,2]
[360908131,1747137043779,-2626.6273124,0.00013452,2]
[360908134,1747137043795,-1335.09407228,0.00013452,2]
[360908136,1747137043805,-23752.67275644,0.0001355,2]
[360908140,1747137043834,-5168.0,0.0001355,2]
[360908287,1747137046929,-1992.25656816,0.0001355,2]
[360908316,1747137699695,-299.47590942,0.00012294,2]
[360908321,1747137850083,-194.256175,0.00012169,2]
[360908324,1747137865176,-196.47763723,0.00012169,2]
[360908325,1747137880695,-288.16200006,0.00012169,2]
[360908342,1747138034103,-5000.0,0.00012046,2]
[360908343,1747138034125,-300.0,0.00012167,2]
[360908344,1747138034147,-73.23428505,0.00012168,2]
[360908345,1747138042089,-226.76571495,0.00012168,2]
[360908346,1747138042111,-939.75109384,0.00012168,2]
[360908347,1747138048108,-5000.0,0.00012046,2]
[360908348,1747138048130,-260.24890616,0.00012168,2]
[360908349,1747138048151,-300.0,0.00012168,2]
[360908350,1747138048170,-691.11533073,0.00012169,2]
[360908351,1747138050112,-666.04940587,0.00012169,2]
[360908352,1747138052081,-402.43021619,0.00012169,2]
[360908360,1747138158138,-5000.0,0.00012047,2]
[360908361,1747138158160,-309.40504721,0.00012169,2]
[360908362,1747138158185,-263.19304505,0.00012191,2]
[360908363,1747138158206,-500.0,0.0001229,2]
[360908364,1747138158227,-500.0,0.0001229,2]
[360908365,1747138158249,-639.84622703,0.0001229,2]
[360908366,1747138158270,-454.67988369,0.0001229,2]
[360908367,1747138158292,-500.0,0.0001229,2]
[360908368,1747138158314,-159.82148805,0.0001229,2]
[360908369,1747138158336,-500.0,0.0001229,2]
[360908370,1747138158358,-500.0,0.0001229,2]
[360908371,1747138158380,-500.0,0.0001229,2]
[360908372,1747138158402,-500.0,0.0001229,2]
[360908373,1747138158424,-500.0,0.0001229,2]
[360908374,1747138158446,-247.56238844,0.0001229,2]
[360908375,1747138158468,-500.0,0.0001229,2]
[360908376,1747138158490,-500.0,0.0001229,2]
[360908377,1747138158512,-194.14360825,0.0001229,2]
[360908378,1747138158534,-500.0,0.0001229,2]
[360908379,1747138158558,-500.0,0.0001229,2]
[360908380,1747138158579,-500.0,0.0001229,2]
[360908381,1747138158600,-500.0,0.0001229,2]
[360908382,1747138158622,-500.0,0.0001229,2]
[360908383,1747138158646,-500.0,0.0001229,2]
[360908384,1747138158668,-500.0,0.0001229,2]
[360908385,1747138158691,-500.0,0.0001229,2]
[360908386,1747138158717,-500.0,0.0001229,2]
[360908387,1747138158740,-500.0,0.0001229,2]
[360908388,1747138158762,-500.0,0.0001229,2]
[360908389,1747138158785,-500.0,0.0001229,2]
[360908390,1747138158807,-500.0,0.0001229,2]
[360908391,1747138158830,-500.0,0.0001229,2]
[360908392,1747138158855,-500.0,0.0001229,2]
[360908393,1747138158878,-500.0,0.0001229,2]
[360908394,1747138158901,-500.0,0.0001229,2]
[360908395,1747138158925,-500.0,0.0001229,2]
[360908396,1747138158950,-551.37544668,0.0001229,2]
[360908397,1747138158974,-500.0,0.0001229,2]
[360908398,1747138158998,-500.0,0.0001229,2]
[360908399,1747138159022,-500.0,0.0001229,2]
[360908400,1747138159043,-300.0,0.0001229,2]
[360908401,1747138159069,-50000.0,0.00012291,2]
[360908402,1747138159091,-18077.8907121,0.00012294,2]
[360908404,1747138163102,-6255.56503274,0.00012294,2]
[360908434,1747138231753,-5000.0,0.00012171,2]
[360908436,1747138231764,-151.0,0.00012285,2]
[360908471,1747138231774,-267.06834574,0.00012294,2]
[360908473,1747138232068,-263.19304503,0.00012895,2]
[360908475,1747138232077,-351.67391715,0.000129,2]
[360908477,1747138232086,-351.67391715,0.00013021,2]
[360908479,1747138232095,-318.2414874,0.000132,2]
[360908481,1747138232105,-300.0,0.00013216,2]
[360908483,1747138232114,-300.0,0.00013216,2]
[360908484,1747138232123,-2706.0,0.00013217,2]
[360908485,1747138232132,-1769.92680333,0.00013217,2]
[360908486,1747138232141,-455.76168365,0.00013272,2]
[360908487,1747138232151,-636.53007785,0.00013272,2]
[360908488,1747138232160,-455.76168364,0.00013354,2]
[360908489,1747138232169,-5000.0,0.00013372,2]
[360908490,1747138232182,-207.4,0.00013372,2]
[360908491,1747138232191,-5000.0,0.00013372,2]
[360908492,1747138232200,-5000.0,0.00013372,2]
[360908493,1747138232209,-5000.0,0.00013372,2]
[360908494,1747138232218,-3258.86110154,0.00013372,2]
[360908874,1747138237668,-1741.13889846,0.00013372,2]
[360908875,1747138237678,-456.20226352,0.00013408,2]
[360908876,1747138237691,-196.41070181,0.00013408,2]
[360908877,1747138237701,-424.38536445,0.00013435,2]
[360908878,1747138237719,-31.37631919,0.00013435,2]
[360908879,1747138237729,-455.76168364,0.00013517,2]
[360908880,1747138237740,-23126.48023774,0.0001355,2]
[360908940,1747138242786,-5000.0,0.00013238,2]
[360908941,1747138242797,-8666.00740143,0.0001355,2]
[360908948,1747138246073,-1210.55707798,0.0001355,2]
[360908960,1747138721400,-174.07163383,0.00011621,2]
[360908961,1747138735643,-189.46946149,0.00011621,2]
[360908962,1747138750297,-190.36410232,0.0001162,2]
[360908963,1747138766264,-109.63589768,0.0001162,2]
[360908964,1747138766287,-200.0,0.00011621,2]
[360908967,1747138780091,-216.34533946,0.00011621,2]
[360908968,1747138795164,-236.81198302,0.00011621,2]
[360908969,1747138810823,-193.7808452,0.0001162,2]
[360908970,1747138825155,-256.32355769,0.00011504,2]
[360908971,1747138840273,-241.77603001,0.00011504,2]
[360908972,1747138855146,-293.89529203,0.00011504,2]
[360908973,1747138870576,-151.70063652,0.00011504,2]
[360908977,1747138885135,-305.42821687,0.00011504,2]
[360908979,1747138932366,-254.56116188,0.00011099,2]
[360908980,1747138947418,-389.20936491,0.00011099,2]
[360908981,1747138952709,-299.22165101,0.00011099,2]
[360908982,1747138962432,-153.0109088,0.00011099,2]
[360908983,1747138977434,-229.90412252,0.00011099,2]
[360908985,1747138992551,-264.0313792,0.00011099,2]
[360908986,1747138995632,-271.01813992,0.00011099,2]
[360908987,1747139007950,-301.37508624,0.00011099,2]
[360908988,1747139014281,-207.61470232,0.00010988,2]
[360908991,1747139047264,-400.0,0.00010988,2]
[360908992,1747139075620,-235.60804932,0.00010988,2]
[360908993,1747139079393,-263.14757164,0.00010988,2]
[360908994,1747139082067,-252.05480483,0.00010988,2]
[360908995,1747139084855,-177.77434013,0.00010988,2]
[360908996,1747139086611,-282.03890805,0.00010988,2]
[360908997,1747139089199,-245.55683349,0.00010988,2]
[360908998,1747139091217,-218.78489798,0.00010988,2]
[360908999,1747139093446,-154.10567246,0.00010988,2]
[360909000,1747139095898,-181.19864509,0.00010988,2]
[360909001,1747139097335,-181.0,0.00010988,2]
[360909002,1747139100225,-208.71843324,0.00010988,2]
[360909003,1747139101824,-223.5143695,0.00010988,2]
[360909004,1747139103357,-239.19050477,0.00010988,2]
[360909005,1747139104901,-215.51499047,0.00010988,2]
[360909006,1747139110244,-165.48684912,0.00010988,2]
[360909007,1747139111665,-200.02633474,0.00010988,2]
[360909008,1747139113289,-282.19879271,0.00010988,2]
[360909009,1747139116032,-283.46536939,0.00010988,2]
[360909010,1747139117789,-184.15549261,0.00010988,2]
[360909011,1747139119284,-198.84443814,0.00010988,2]
[360909012,1747139119308,-44.87169273,0.00011099,2]
[360909013,1747139122818,-162.52959889,0.00011099,2]
[360909014,1747139127739,-5000.0,0.0001152,2]
[360909015,1747139127762,-300.0,0.00011618,2]
[360909016,1747139127786,-1200.0,0.00011618,2]
[360909017,1747139127810,-300.0,0.00011618,2]
[360909018,1747139127836,-500.0,0.00011619,2]
[360909019,1747139127860,-243.79373425,0.00011619,2]
[360909020,1747139127886,-500.0,0.00011619,2]
[360909021,1747139127909,-500.0,0.00011619,2]
[360909022,1747139127933,-427.42503613,0.00011619,2]
[360909023,1747139128253,-450.15282741,0.00011619,2]
[360909024,1747139128276,-548.25353974,0.00011619,2]
[360909025,1747139128299,-500.0,0.00011619,2]
[360909026,1747139128322,-500.0,0.00011619,2]
[360909027,1747139128346,-500.0,0.00011619,2]
[360909028,1747139128367,-500.0,0.00011619,2]
[360909029,1747139128389,-180.82711525,0.00011619,2]
[360909030,1747139128412,-500.0,0.00011619,2]
[360909031,1747139128436,-635.6778671,0.00011619,2]
[360909032,1747139128460,-520.33012457,0.00011619,2]
[360909033,1747139128484,-317.77855541,0.00011619,2]
[360909034,1747139128507,-500.0,0.00011619,2]
[360909035,1747139128530,-500.0,0.00011619,2]
[360909036,1747139128554,-436.71765854,0.00011619,2]
[360909037,1747139128576,-164.29666157,0.00011619,2]
[360909038,1747139128598,-44274.74688003,0.0001162,2]
[360909040,1747139140974,-169.91242968,0.00011503,2]
[360909041,1747139142902,-167.55797143,0.00011503,2]
[360909042,1747139144981,-360.8919552,0.00011503,2]
[360909043,1747139147706,-175.77105193,0.00011503,2]
[360909044,1747139195602,-274.6360475,0.00011497,2]
[360909045,1747139222284,-84.3838927,0.00011497,2]
[360909046,1747139222321,-308.21799783,0.00011503,2]
[360909049,1747139225489,-233.35483806,0.00011503,2]
[360909050,1747139227106,-254.36804391,0.00011503,2]
[360909052,1747139239237,-1702.96133143,0.00011503,2]
[360909053,1747139245163,-1626.96438053,0.00011503,2]
[360909054,1747139245184,-203.6642975,0.0001162,2]
[360909055,1747139245206,-500.0,0.0001162,2]
[360909056,1747139245228,-300.0,0.0001162,2]
[360909057,1747139245250,-2358.41424352,0.00011621,2]
[360909058,1747139246086,-8400.8712916,0.00011621,2]
[360909059,1747139247392,-181.50307384,0.00011621,2]
[360909064,1747139253087,-2125.15831891,0.00011621,2]
[360909099,1747139350091,-5000.0,0.00011505,2]
[360909100,1747139350113,-500.0,0.0001162,2]
[360909101,1747139350133,-300.0,0.0001162,2]
[360909102,1747139350154,-1121.55756392,0.00011621,2]
[360909103,1747139350181,-2953.51103098,0.00011621,2]
[360909104,1747139352078,-639.48732832,0.00011621,2]
[360909106,1747139356099,-2010.87313513,0.00011621,2]
[360909107,1747139365109,-5000.0,0.00011505,2]
[360909108,1747139365131,-345.07994444,0.00011621,2]
[360909109,1747139367072,-1857.19495571,0.00011621,2]
[360909153,1747139432357,-189.21792572,0.00011505,2]
[360909154,1747139432369,-4810.78207428,0.00011505,2]
[360909155,1747139432379,-151.45521363,0.00011614,2]
[360909156,1747139432389,-223.13386681,0.0001162,2]
[360909157,1747139432399,-98.19052823,0.00011621,2]
[360909158,1747139432411,-427.5448912,0.00011657,2]
[360909159,1747139432421,-250.64636734,0.00012486,2]
[360909160,1747139432431,-300.0,0.00012577,2]
[360909161,1747139432441,-1200.0,0.00012577,2]
[360909162,1747139432450,-300.0,0.00012577,2]
[360909163,1747139432460,-500.0,0.00012578,2]
[360909164,1747139432470,-500.0,0.00012578,2]
[360909165,1747139432480,-500.0,0.00012578,2]
[360909166,1747139432489,-441.58664377,0.00012578,2]
[360909167,1747139432499,-509.20559417,0.00012578,2]
[360909168,1747139432508,-572.889,0.00012578,2]
[360909169,1747139432517,-7538.47772133,0.00012578,2]
[360909170,1747139432527,-5382.22962524,0.00012579,2]
[360909171,1747139432538,-349.2695165,0.00012679,2]
[360909172,1747139432549,-392.34587166,0.000129,2]
[360909173,1747139432559,-392.34587159,0.000129,2]
[360909174,1747139432568,-652.61296533,0.00013183,2]
[360909175,1747139432579,-5000.0,0.00013372,2]
[360909176,1747139432589,-215.02279122,0.00013372,2]
[360909177,1747139432599,-151.0,0.00013372,2]
[360909178,1747139432608,-5000.0,0.00013372,2]
[360909179,1747139432620,-5000.0,0.00013372,2]
[360909180,1747139432630,-5000.0,0.00013372,2]
[360909181,1747139432639,-5000.0,0.00013372,2]
[360909182,1747139432649,-5000.0,0.00013372,2]
[360909183,1747139432661,-1440.83507346,0.00013372,2]
[360909184,1747139432809,-2947.8630691,0.00013372,2]
[360909185,1747139432821,-155.71470018,0.00013372,2]
[360909186,1747139432831,-245.88758902,0.00013427,2]
[360909187,1747139432841,-119976.68327745,0.0001355,2]
[360909188,1747139432852,-36861.36101177,0.0001355,2]
[360909189,1747139432864,-518.7636901,0.0001355,2]
[360909200,1747139439104,-1503.38285742,0.0001355,2]
[360909201,1747139439164,-6859.23040554,0.0001355,2]
[360909260,1747139446966,-78010.80274219,0.0001355,2]
[360909261,1747139447009,-34645.46566527,0.0001355,2]
[360909263,1747139447039,-366906.42303634,0.0001355,2]
[360909264,1747139447051,-15560.22074286,0.0001355,2]
[360909265,1747139447072,-8322.38684009,0.0001355,2]
[360909274,1747139535084,-202.71509368,0.00012577,2]
[360909386,1747139767165,-611.4,0.00012576,2]
[360909520,1747140439110,-5000.0,0.00011874,2]
[360909521,1747140439132,-274.6360475,0.00011994,2]
[360909522,1747140439154,-249.2322551,0.0001212,2]
[360909523,1747140439177,-565.68,0.00012329,2]
[360909524,1747140439198,-824.12436707,0.00012473,2]
[360909525,1747140445119,-375.87563293,0.00012473,2]
[360909526,1747140445140,-270.0,0.00012473,2]
[360909527,1747140445162,-300.0,0.00012473,2]
[360909528,1747140445187,-376.15514152,0.00012473,2]
[360909529,1747140445209,-500.0,0.00012473,2]
[360909530,1747140445230,-389.21640684,0.00012473,2]
[360909531,1747140450126,-110.78359316,0.00012473,2]
[360909532,1747140450147,-500.0,0.00012473,2]
[360909533,1747140450168,-227.44253051,0.00012473,2]
[360909534,1747140450193,-500.0,0.00012473,2]
[360909535,1747140450215,-500.0,0.00012473,2]
[360909536,1747140450236,-473.14361991,0.00012473,2]
[360909537,1747140450259,-500.0,0.00012473,2]
[360909538,1747140450281,-214.48993646,0.00012473,2]
[360909539,1747140454078,-5000.0,0.00012348,2]
[360909540,1747140454100,-85.51006354,0.00012473,2]
[360909541,1747140454122,-500.0,0.00012473,2]
[360909542,1747140454143,-3064.69938012,0.00012478,2]
[360910598,1747140632164,-181.5580592,0.0001212,2]
[360910599,1747140632174,-318.4419408,0.00012353,2]
[360910620,1747140638010,-4681.5580592,0.00012353,2]
[360910621,1747140638023,-300.0,0.00012477,2]
[360910622,1747140638036,-210.4419408,0.00012477,2]
[360910626,1747140638165,-336.20663111,0.00012477,2]
[360910674,1747140646223,-5000.0,0.00012352,2]
[360910675,1747140646233,-653.35142809,0.00012477,2]
[360910676,1747140646243,-500.0,0.00012477,2]
[360910677,1747140646459,-200.0,0.00012477,2]
[360910678,1747140646469,-156.98740169,0.00012477,2]
[360910679,1747140646479,-9655.31756878,0.00012478,2]
[360910680,1747140646489,-1135.4487133,0.00012576,2]
[360910681,1747140646499,-1404.25634751,0.00013271,2]
[360910682,1747140646508,-294.25940371,0.00013272,2]
[360910683,1747140646517,-652.61296533,0.00013285,2]
[360910684,1747140646527,-500.0,0.00013371,2]
[360910685,1747140646537,-469.83533485,0.00013371,2]
[360910686,1747140646546,-500.0,0.00013371,2]
[360910687,1747140646556,-458.312,0.00013371,2]
[360910688,1747140646565,-5000.0,0.00013372,2]
[360910689,1747140646575,-5000.0,0.00013372,2]
[360910690,1747140646584,-5000.0,0.00013372,2]
[360910691,1747140646593,-5000.0,0.00013372,2]
[360910692,1747140646608,-5000.0,0.00013372,2]
[360910693,1747140646617,-500.0,0.00013458,2]
[360910694,1747140646627,-1001.58,0.000135,2]
[360910695,1747140646636,-200.0,0.000135,2]
[360910696,1747140646646,-2034.21200233,0.0001355,2]
[360910697,1747140646678,-671.97696574,0.0001355,2]
[360910698,1747140646725,-13.85536573,0.0001355,2]
[360910700,1747140647674,-1252.03618634,0.0001355,2]
[360912025,1747141626108,-5000.0,0.00012055,2]
[360912026,1747141626130,-300.0,0.00012297,2]
[360912027,1747141626152,-300.0,0.00012297,2]
[360912028,1747141626176,-100.93180091,0.00012298,2]
[360912029,1747141638106,-1270.98984604,0.00012175,2]
[360912030,1747141645130,-3729.01015396,0.00012175,2]
[360912031,1747141645151,-199.06819909,0.00012298,2]
[360912032,1747141645172,-300.0,0.00012298,2]
[360912033,1747141645192,-300.0,0.00012298,2]
[360912034,1747141645213,-1200.0,0.00012298,2]
[360912035,1747141645239,-500.0,0.00012298,2]
[360912036,1747141645261,-89.51672711,0.00012298,2]
[360912037,1747141648099,-410.48327288,0.00012298,2]
[360912038,1747141648122,-28.88134784,0.00012298,2]
[360912039,1747141682016,-5000.0,0.00012175,2]
[360912040,1747141682042,-598.03253434,0.00012298,2]
[360912041,1747141682065,-221.36387853,0.00012298,2]
[360912042,1747141682089,-500.0,0.00012298,2]
[360912043,1747141682113,-6768.0,0.000123,2]
[360912044,1747141682136,-180.62418458,0.00012436,2]
[360912045,1747141682159,-500.0,0.00012522,2]
[360912046,1747141682181,-500.0,0.00012522,2]
[360912047,1747141682204,-5269.5255714,0.00012651,2]
[360912048,1747141682228,-593.27255656,0.00012889,2]
[360912049,1747141682259,-500.0,0.00012889,2]
[360912050,1747141682283,-500.0,0.00012889,2]
[360912051,1747141682309,-500.0,0.00012889,2]
[360912052,1747141682335,-257.15041205,0.00012889,2]
[360912053,1747141682361,-5000.0,0.0001289,2]
[360912054,1747141682386,-257.47697829,0.00013304,2]
[360912055,1747141682410,-652.61296533,0.00013404,2]
[360912056,1747141682435,-500.0,0.0001344,2]
[360912057,1747141682459,-301.0,0.00013496,2]
[360912058,1747141682486,-1680.0,0.00013528,2]
[360912059,1747141682510,-314987.60758558,0.0001355,2]
[360912060,1747141683352,-300.0,0.00012299,2]
[360912061,1747141683377,-420.0,0.00013497,2]
[360912062,1747141683402,-18786.79037382,0.0001355,2]
[360912063,1747141683427,-500.0,0.0001355,2]
[360912064,1747141683450,-160.0,0.0001355,2]
[360912065,1747141683475,-277.71008774,0.0001355,2]
[360912066,1747141683505,-160.0,0.0001355,2]
[360912067,1747141683531,-261.53427899,0.0001355,2]
[360912068,1747141683556,-616.59468611,0.00013598,2]
[360912069,1747141683581,-263.19304503,0.00013598,2]
[360912070,1747141683608,-399.209,0.00013672,2]
[360912071,1747141683634,-500.0,0.00013673,2]
[360912072,1747141683660,-500.0,0.00013673,2]
[360912073,1747141683684,-500.0,0.00013673,2]
[360912074,1747141683708,-500.21373981,0.00013673,2]
[360912075,1747141683735,-500.0,0.00013673,2]
[360912076,1747141683760,-501.76778877,0.00013673,2]
[360912077,1747141683784,-500.15866662,0.00013673,2]
[360912078,1747141683808,-500.0,0.00013673,2]
[360912079,1747141683831,-500.0,0.00013673,2]
[360912080,1747141683854,-500.78210467,0.00013673,2]
[360912081,1747141683876,-500.84216069,0.00013673,2]
[360912082,1747141683899,-500.0,0.00013673,2]
[360912083,1747141683923,-500.0,0.00013673,2]
[360912084,1747141683946,-356.65813714,0.00013673,2]
[360912085,1747141683969,-500.0,0.00013673,2]
[360912086,1747141683997,-500.0,0.00013673,2]
[360912087,1747141684021,-500.0,0.00013673,2]
[360912088,1747141684044,-502.62465839,0.00013673,2]
[360912089,1747141684067,-511.95072736,0.00013673,2]
[360912090,1747141684091,-500.0,0.00013673,2]
[360912091,1747141684114,-500.76517984,0.00013673,2]
[360912092,1747141684137,-500.0,0.00013673,2]